fUSD/lending_fUSD_20240725
["ID","MTS","AMOUNT","RATE_DAILY","PERIOD"]
[333188988,1721929833140,-779.4689891,9.513e-05,2]
[333188989,1721929833150,-150.0829378,9.532e-05,2]
[333188990,1721929833160,-1041.70693301,9.533e-05,2]
[333188991,1721929833170,-539.75914158,9.55e-05,2]
[333188992,1721929833180,-151.35965924,9.579e-05,2]
[333188993,1721929833189,-5029.2202325,9.67e-05,2]
[333188994,1721929833202,-26153.8397675,9.67e-05,2]
[333188995,1721929833211,-9653.8420381,9.67e-05,2]
[333188996,1721929833233,-346.1479619,9.67e-05,2]
[333188997,1721929833242,-411.63,9.67e-05,2]
[333188998,1721929833251,-34.8121555,9.67e-05,2]
[333188999,1721929833263,-299.3378445,9.67e-05,2]
[333189000,1721929833273,-223.6771555,9.67e-05,2]
[333189001,1721929833286,-1950.7628445,9.67e-05,2]
[333189002,1721929833295,-151.4000366,9.709e-05,2]
[333189003,1721929833305,-151.174157,9.752e-05,2]
[333189004,1721929833314,-539.75914158,9.753e-05,2]
[333189005,1721929833324,-738.61512985,9.757e-05,2]
[333189006,1721929833333,-1041.70693301,9.758e-05,2]
[333189007,1721929833343,-1041.70693301,9.791e-05,2]
[333189008,1721929833353,-2056.97,9.802e-05,2]
[333189009,1721929833362,-2056.97,9.805e-05,2]
[333189010,1721929833371,-2056.97,9.808e-05,2]
[333189011,1721929833380,-2056.97,9.81e-05,2]
[333189012,1721929833389,-2056.97,9.813e-05,2]
[333189013,1721929833398,-2056.97,9.815e-05,2]
[333189014,1721929833407,-2056.97,9.818e-05,2]
[333189015,1721929833416,-676.20127765,9.82e-05,2]
[333189016,1721929833428,-1165.79999,9.82e-05,2]
[333189017,1721929833439,-214.96873235,9.82e-05,2]
[333189018,1721929833449,-1759.85376765,9.823e-05,2]
[333189019,1721929833460,-297.11623235,9.823e-05,2]
[333189020,1721929833469,-151.4000366,9.825e-05,2]
[333189021,1721929833478,-90.52347316,9.826e-05,2]
[333189022,1721929833490,-463.05,9.826e-05,2]
[333189024,1721929833504,-1503.39652684,9.826e-05,2]
[333189026,1721929833513,-2056.97,9.828e-05,2]
[333189028,1721929833523,-2056.97,9.831e-05,2]
[333189030,1721929833535,-2056.97,9.833e-05,2]
[333189031,1721929833544,-2056.97,9.836e-05,2]
[333189032,1721929833553,-139.85414064,9.838e-05,2]
[333189033,1721929833564,-542.67878054,9.838e-05,2]
[333189034,1721929833576,-1374.43707882,9.838e-05,2]
[333189035,1721929833585,-243.63926107,9.841e-05,2]
[333189036,1721929833597,-703.37788318,9.841e-05,2]
[333189037,1721929833609,-450.47,9.841e-05,2]
[333189058,1721929838032,-320.71512642,9.841e-05,2]
[333189059,1721929838046,-338.76772933,9.841e-05,2]
[333189060,1721929838058,-203.14026452,9.844e-05,2]
[333189061,1721929838072,-1853.82973548,9.844e-05,2]
[333189062,1721929838084,-2056.97,9.846e-05,2]
[333189063,1721929838096,-155.23157506,9.848e-05,2]
[333189064,1721929838108,-2056.97,9.849e-05,2]
[333189065,1721929838121,-2056.97,9.851e-05,2]
[333189066,1721929838134,-151.35965924,9.862e-05,2]
[333189067,1721929838145,-1000.0,9.907e-05,2]
[333189068,1721929838156,-230.08992811,9.918e-05,2]
[333189069,1721929838167,-175.28772076,9.95e-05,2]
[333189070,1721929838178,-230.08992811,9.978e-05,2]
[333189071,1721929838190,-172.0264902,9.979e-05,2]
[333189072,1721929838201,-6758.57608726,9.984e-05,2]
[333189073,1721929838215,-181.84534994,9.992e-05,2]
[333189074,1721929838227,-274.08274968,9.999e-05,2]
[333189075,1721929838240,-200.0,0.00010049,2]
[333189076,1721929838252,-181.84534994,0.0001007,2]
[333189077,1721929838264,-181.84534994,0.00010082,2]
[333189078,1721929838274,-274.08274968,0.00010097,2]
[333189079,1721929838286,-181.84534994,0.0001013,2]
[333189080,1721929838297,-738.61512985,0.00010134,2]
[333189081,1721929838309,-319.73359983,0.00010162,2]
[333189082,1721929838320,-230.08992811,0.00010174,2]
[333189083,1721929838332,-20.61331887,0.00010179,2]
[333189084,1721929838348,-129.46961893,0.00010179,2]
[333189085,1721929838360,-251.86503475,0.00010185,2]
[333189087,1721929838392,-3653.20987366,9.458e-05,2]
[333189089,1721929838407,-35450.747598,9.458e-05,2]
[333189091,1721929838422,-994.53623725,9.458e-05,2]
[333189093,1721929838437,-697.22222227,9.458e-05,2]
[333189095,1721929838455,-2192.4951309,9.458e-05,2]
[333189097,1721929838469,-1731.09387748,9.458e-05,2]
[333189103,1721929838500,-37680.53168441,9.458e-05,2]
[333189107,1721929838513,-443.81585153,9.458e-05,2]
[333189111,1721929838530,-19881.1438419,9.458e-05,2]
[333189114,1721929838547,-21935.36036436,9.458e-05,2]
[333189117,1721929838560,-287.89410683,0.00010185,2]
[333189121,1721929838572,-151.35965924,0.0001019,2]
[333189124,1721929838583,-366.45107818,0.00010191,2]
[333189126,1721929838595,-150.0,0.00010192,2]
[333189129,1721929838607,-232.92,0.00010192,2]
[333189133,1721929838619,-425.58,0.00010192,2]
[333189135,1721929838631,-165.34,0.00010192,2]
[333189137,1721929838642,-358.67,0.00010192,2]
[333189139,1721929838654,-150.0,0.00010192,2]
[333189141,1721929838665,-150.0,0.00010192,2]
[333189143,1721929838676,-1093.4,0.00010192,2]
[333189145,1721929838687,-338.22,0.00010192,2]
[333189147,1721929838699,-150.0,0.00010192,2]
[333189149,1721929838713,-425.58,0.00010192,2]
[333189151,1721929838724,-165.34,0.00010192,2]
[333189153,1721929838735,-425.58,0.00010192,2]
[333189155,1721929838746,-150.0,0.00010192,2]
[333189157,1721929838757,-165.34,0.00010192,2]
[333189158,1721929838768,-425.2,0.00010192,2]
[333189160,1721929838781,-165.34,0.00010192,2]
[333189162,1721929838794,-162.43,0.00010192,2]
[333189164,1721929838805,-156.6137194,0.00010195,2]
[333189166,1721929838815,-151.4000366,0.00010218,2]
[333189168,1721929838827,-192.00788538,0.0001022,2]
[333189170,1721929838839,-157.69581596,0.00010231,2]
[333189173,1721929838850,-164.64625713,0.00010238,2]
[333189174,1721929838861,-213.79217864,0.00010248,2]
[333189176,1721929838871,-208.86805572,0.00010252,2]
[333189178,1721929838882,-274.08274968,0.00010252,2]
[333189180,1721929838893,-151.174157,0.00010299,2]
[333189182,1721929838905,-155.23157506,0.00010329,2]
[333189184,1721929838916,-151.35965924,0.00010351,2]
[333189186,1721929838927,-174.6132062,0.00010392,2]
[333189288,1721929840067,-7.23214374,0.00010392,2]
[333189290,1721929840078,-208.86805572,0.00010392,2]
[333189291,1721929840089,-176.7552058,0.00010403,2]
[333189292,1721929840171,-5.46775531,0.00010403,2]
[333189293,1721929840183,-165.92612166,0.00010411,2]
[333189294,1721929840194,-230.08992811,0.00010416,2]
[333189295,1721929840205,-995.20665496,0.00010421,2]
[333189296,1721929840217,-614.92837213,0.00010421,2]
[333189297,1721929840230,-38.20497291,0.00010421,2]
[333189298,1721929840241,-213.79217864,0.00010423,2]
[333189299,1721929840252,-246.33024554,0.00010424,2]
[333189300,1721929840263,-230.08992811,0.00010439,2]
[333189302,1721929840273,-150.0829378,0.00010456,2]
[333189303,1721929840285,-274.08274968,0.00010476,2]
[333189305,1721929840295,-166.66666666,0.00010478,2]
[333189307,1721929840306,-166.66666667,0.00010512,2]
[333189309,1721929840316,-151.11045028,0.00010547,2]
[333189311,1721929840327,-168.0387666,0.00010572,2]
[333189313,1721929840338,-319.73359983,0.00010576,2]
[333189315,1721929840348,-162.32691961,0.00010669,2]
[333189317,1721929840358,-151.4000366,0.00010674,2]
[333189319,1721929840369,-230.08992811,0.0001069,2]
[333189321,1721929840379,-230.08992811,0.00010692,2]
[333189324,1721929840390,-208.86805572,0.00010693,2]
[333189326,1721929840400,-366.45107818,0.00010731,2]
[333189328,1721929840411,-151.11045028,0.0001077,2]
[333189330,1721929840422,-539.75914158,0.0001077,2]
[333189332,1721929840432,-151.35965924,0.00010786,2]
[333189334,1721929840443,-539.033,0.00010799,2]
[333189336,1721929840453,-654.01766607,0.000108,2]
[333189372,1721929840795,-345.98233393,0.000108,2]
[333189374,1721929840805,-151.174157,0.00010818,2]
[333189377,1721929840816,-72.8344021,0.00010844,2]
[333189379,1721929840829,-466.92473948,0.00010844,2]
[333189381,1721929840839,-274.08274968,0.00010845,2]
[333189383,1721929840849,-366.45107818,0.00010856,2]
[333189385,1721929840860,-213.79217864,0.0001086,2]
[333189388,1721929840870,-154.56504135,0.00010881,2]
[333189390,1721929840880,-954.7196362,0.0001089,2]
[333189392,1721929840893,-2045.2803638,0.0001089,2]
[333189394,1721929840903,-452.40628403,0.0001089,2]
[333189396,1721929840914,-230.08992811,0.00010894,2]
[333189398,1721929840924,-563.61407774,0.00010899,2]
[333189401,1721929840937,-891.51412651,0.00010899,2]
[333189486,1721929843223,-6044.87179575,0.00010899,2]
[333189487,1721929843234,-158.2672948,0.00010899,2]
[333189488,1721929843245,-158.26729478,0.00010899,2]
[333189489,1721929843255,-158.26729478,0.00010899,2]
[333189490,1721929843267,-158.26729478,0.00010899,2]
[333189491,1721929843278,-158.26729478,0.00010899,2]
[333189492,1721929843292,-158.26729478,0.00010899,2]
[333189493,1721929843303,-158.26729478,0.00010899,2]
[333189494,1721929843314,-158.26729478,0.00010899,2]
[333189495,1721929843324,-158.26729478,0.00010899,2]
[333189496,1721929843335,-468.3864,0.000109,2]
[333189497,1721929843347,-500.0,0.000109,2]
[333189498,1721929843357,-3540.6494,0.000109,2]
[333189499,1721929843367,-25299.06012235,0.000109,2]
[333189500,1721929843389,-1553.22157765,0.000109,2]
[333189501,1721929843399,-3034.69265995,0.000109,2]
[333189502,1721929843410,-4758.83315236,0.000109,2]
[333189505,1721929846159,-136.28018769,0.000109,2]
[333189506,1721929846169,-144.72862472,0.000109,2]
[333189507,1721929846331,-161.44137528,0.000109,2]
[333189509,1721929846340,-174.46635943,0.000109,2]
[333189511,1721929846350,-160.44485384,0.000109,2]
[333189514,1721929846360,-158.26729478,0.000109,2]
[333189516,1721929846369,-1017.6132676,0.000109,2]
[333189518,1721929846379,-176.96034438,0.000109,2]
[333189520,1721929846388,-605.0,0.000109,2]
[333189522,1721929846397,-274.08274968,0.00010913,2]
[333189524,1721929846407,-208.86805572,0.00010917,2]
[333189526,1721929846417,-53.35606525,0.00010958,2]
[333189568,1721929847176,-446.64393475,0.00010958,2]
[333189569,1721929847186,-73.332605,0.00010958,2]
[333189571,1721929847719,-271.057395,0.00010958,2]
[333189572,1721929847728,-525.41980997,0.00010958,2]
[333189573,1721929847738,-500.0,0.00010958,2]
[333189574,1721929847747,-500.0,0.00010958,2]
[333189575,1721929847757,-627.83,0.00010958,2]
[333189576,1721929847766,-500.0,0.00010958,2]
[333189577,1721929847776,-500.0,0.00010958,2]
[333189578,1721929847788,-500.0,0.00010958,2]
[333189579,1721929847797,-600.28,0.00010958,2]
[333189580,1721929847807,-267.21302221,0.00010958,2]
[333189581,1721929847817,-500.0,0.00010958,2]
[333189582,1721929847826,-7.65577282,0.00010958,2]
[333189583,1721929847838,-492.34422718,0.00010958,2]
[333189584,1721929847848,-209.49,0.00010958,2]
[333189585,1721929847857,-500.0,0.00010958,2]
[333189586,1721929847866,-500.0,0.00010958,2]
[333189587,1721929847877,-500.0,0.00010958,2]
[333189588,1721929847886,-457.81,0.00010958,2]
[333189589,1721929847896,-176.94205322,0.00010958,2]
[333189590,1721929847907,-323.05794678,0.00010958,2]
[333189591,1721929847917,-500.0,0.00010958,2]
[333189592,1721929847926,-500.0,0.00010958,2]
[333189593,1721929847935,-172.42582263,0.00010958,2]
[333189594,1721929847944,-606.77,0.00010958,2]
[333189595,1721929847954,-500.0,0.00010958,2]
[333189596,1721929847963,-500.0,0.00010958,2]
[333189597,1721929847972,-500.0,0.00010958,2]
[333189598,1721929847981,-500.0,0.00010958,2]
[333189599,1721929847990,-500.0,0.00010958,2]
[333189600,1721929848000,-500.0,0.00010958,2]
[333189601,1721929848009,-500.0,0.00010958,2]
[333189602,1721929848018,-317.56762843,0.00010958,2]
[333189603,1721929848028,-281.67715014,0.00010958,2]
[333189604,1721929848037,-500.0,0.00010958,2]
[333189605,1721929848046,-500.0,0.00010958,2]
[333189606,1721929848056,-500.0,0.00010958,2]
[333189607,1721929848065,-500.0,0.00010958,2]
[333189608,1721929848075,-451.81,0.00010958,2]
[333189609,1721929848085,-500.0,0.00010958,2]
[333189610,1721929848095,-500.0,0.00010958,2]
[333189611,1721929848104,-136.4665553,0.00010958,2]
[333189612,1721929848117,-218.4334447,0.00010958,2]
[333189613,1721929848127,-394.2365553,0.00010958,2]
[333189614,1721929848138,-105.7634447,0.00010958,2]
[333189615,1721929848148,-178.55009373,0.00010958,2]
[333189616,1721929848158,-500.0,0.00010958,2]
[333189617,1721929848167,-256.86456555,0.00010958,2]
[333189618,1721929848178,-243.13543445,0.00010958,2]
[333189619,1721929848190,-117.50438559,0.00010958,2]
[333189620,1721929848306,-382.49561441,0.00010958,2]
[333189621,1721929848316,-500.0,0.00010958,2]
[333189622,1721929848327,-500.0,0.00010958,2]
[333189623,1721929848336,-500.0,0.00010958,2]
[333189624,1721929848346,-500.0,0.00010958,2]
[333189625,1721929848355,-500.0,0.00010958,2]
[333189626,1721929848364,-500.0,0.00010958,2]
[333189627,1721929848374,-75.91768602,0.00010958,2]
[333189628,1721929848398,-478.00231398,0.00010958,2]
[333189629,1721929848407,-1076.24,0.00010958,2]
[333189630,1721929848416,-500.0,0.00010958,2]
[333189631,1721929848426,-500.0,0.00010958,2]
[333189632,1721929848436,-500.0,0.00010958,2]
[333189633,1721929848446,-500.0,0.00010958,2]
[333189634,1721929848455,-3235.78,0.00010959,2]
[333189635,1721929848465,-150.0,0.00010959,2]
[333189636,1721929848476,-250.0,0.00010959,2]
[333189637,1721929848487,-3844.6561378,0.00010994,2]
[333189638,1721929848498,-1296.47569702,0.00010994,2]
[333189639,1721929848510,-539.64431596,0.00010994,2]
[333189659,1721931033870,-162.17,8.219e-05,2]
[333189660,1721931033880,-382.98058203,8.219e-05,2]
[333189661,1721931033906,-1201.21941797,8.219e-05,2]
[333189662,1721931033915,-208.68,8.387e-05,2]
[333189663,1721931033925,-250.0,8.388e-05,2]
[333189664,1721931033935,-200.0,8.414e-05,2]
[333189665,1721931033945,-444.57,8.42e-05,2]
[333189666,1721931033955,-944.17,8.435e-05,2]
[333189667,1721931033964,-17035.87775761,8.435e-05,2]
[333189668,1721931033981,-439.08007404,8.435e-05,2]
[333189670,1721931033992,-1485.16145847,8.435e-05,2]
[333189675,1721931034038,-328.0030492,8.435e-05,2]
[333189678,1721931034049,-634.52,8.435e-05,2]
[333189680,1721931034060,-313.57105066,8.435e-05,2]
[333189687,1721931034303,-1401.71661002,8.435e-05,2]
[333189688,1721931034313,-708.5,8.494e-05,2]
[333189689,1721931034323,-168.83,8.506e-05,2]
[333189690,1721931034333,-1852.42,8.509e-05,2]
[333189691,1721931034342,-3896.69,8.511e-05,2]
[333189692,1721931034353,-908.33,8.521e-05,2]
[333189693,1721931034363,-344.84,8.564e-05,2]
[333189694,1721931034372,-1000.0,8.661e-05,2]
[333189695,1721931034382,-20633.79,8.961e-05,2]
[333189696,1721931034395,-156.71,8.965e-05,2]
[333189697,1721931034405,-156.71,8.968e-05,2]
[333189698,1721931034415,-156.71,8.97e-05,2]
[333189699,1721931034426,-156.71,8.973e-05,2]
[333189700,1721931034436,-12931.87640585,8.974e-05,2]
[333189701,1721931034445,-156.71,8.976e-05,2]
[333189702,1721931034455,-156.71,8.978e-05,2]
[333189703,1721931034464,-156.71,8.981e-05,2]
[333189704,1721931034474,-150.0,8.982e-05,2]
[333189705,1721931034483,-156.71,8.983e-05,2]
[333189706,1721931034492,-156.71,8.986e-05,2]
[333189707,1721931034501,-156.71,8.989e-05,2]
[333189708,1721931034511,-156.71,8.991e-05,2]
[333189709,1721931034521,-156.71,8.994e-05,2]
[333189710,1721931034530,-156.71,8.997e-05,2]
[333189711,1721931034539,-156.71,8.999e-05,2]
[333189712,1721931034549,-156.71,9.002e-05,2]
[333189713,1721931034558,-156.71,9.004e-05,2]
[333189714,1721931034567,-442.09690168,9.005e-05,2]
[333189715,1721931034577,-156.71,9.007e-05,2]
[333189716,1721931034586,-156.71,9.01e-05,2]
[333189717,1721931034595,-168.73261395,9.017e-05,2]
[333189718,1721931034605,-161.70970842,9.02e-05,2]
[333189719,1721931034614,-151.11045028,9.039e-05,2]
[333189720,1721931034624,-635.61574261,9.051e-05,2]
[333189721,1721931034633,-168.41,9.056e-05,2]
[333189722,1721931034646,-174.0567131,9.077e-05,2]
[333189723,1721931034655,-151.53779162,9.077e-05,2]
[333189724,1721931034665,-219.26619974,9.081e-05,2]
[333189725,1721931034675,-168.73261395,9.109e-05,2]
[333189726,1721931034684,-917.88123627,9.11e-05,2]
[333189727,1721931034693,-442.09690168,9.116e-05,2]
[333189728,1721931034702,-151.174157,9.136e-05,2]
[333189729,1721931034712,-151.53779162,9.184e-05,2]
[333189730,1721931034722,-178.16014886,9.205e-05,2]
[333189731,1721931034731,-155.01052635,9.213e-05,2]
[333189732,1721931034740,-917.88123627,9.22e-05,2]
[333189733,1721931034749,-166.66666667,9.23e-05,2]
[333189734,1721931034759,-635.61574261,9.242e-05,2]
[333189735,1721931034768,-178.16014886,9.258e-05,2]
[333189736,1721931034778,-151.174157,9.26e-05,2]
[333189737,1721931034787,-219.26619974,9.304e-05,2]
[333189738,1721931034796,-166.66666665,9.314e-05,2]
[333189739,1721931034806,-219.26619974,9.332e-05,2]
[333189740,1721931034815,-150.0,9.444e-05,2]
[333189741,1721931034826,-150.39538896,9.478e-05,2]
[333189742,1721931034838,-157.69581595,9.486e-05,2]
[333189743,1721931034847,-166.66666666,9.494e-05,2]
[333189744,1721931034856,-154.56504135,9.498e-05,2]
[333189745,1721931034866,-151.53779162,9.526e-05,2]
[333189746,1721931034876,-150.39538896,9.538e-05,2]
[333189747,1721931034887,-166.66666667,9.553e-05,2]
[333189748,1721931034897,-156.61371939,9.562e-05,2]
[333189749,1721931034906,-151.35965924,9.564e-05,2]
[333189750,1721931034917,-178.16014886,9.569e-05,2]
[333189751,1721931034928,-292.79247523,9.594e-05,2]
[333189752,1721931034937,-178.16014886,9.618e-05,2]
[333189753,1721931034947,-174.0567131,9.633e-05,2]
[333189754,1721931034956,-151.35965924,9.648e-05,2]
[333189755,1721931034966,-1135.73,9.67e-05,2]
[333189756,1721931034975,-499.99,9.67e-05,2]
[333189757,1721931034985,-178.16014886,9.681e-05,2]
[333189758,1721931034994,-157.69581595,9.699e-05,2]
[333189759,1721931035003,-151.4000366,9.729e-05,2]
[333189760,1721931035013,-1000.0,9.743e-05,2]
[333189761,1721931035022,-155.1578413,9.774e-05,2]
[333189762,1721931035031,-151.53779162,9.827e-05,2]
[333189763,1721931035040,-151.53779162,9.828e-05,2]
[333189764,1721931035050,-255.0,9.881e-05,2]
[333189765,1721931035058,-155.27583558,9.919e-05,2]
[333189766,1721931035068,-442.09690168,9.982e-05,2]
[333189767,1721931035077,-151.53779162,0.0001001,2]
[333189768,1721931035087,-167.12965064,0.00010019,2]
[333189769,1721931035096,-151.4000366,0.00010032,2]
[333189770,1721931035105,-174.0567131,0.00010044,2]
[333189771,1721931035115,-168.73261395,0.00010074,2]
[333189772,1721931035125,-293.44526873,0.00010083,2]
[333189773,1721931035134,-442.09690168,0.00010102,2]
[333189774,1721931035144,-150.39538896,0.00010111,2]
[333189775,1721931035153,-151.174157,0.0001017,2]
[333189776,1721931035162,-292.79247523,0.00010195,2]
[333189777,1721931035172,-219.26619974,0.00010204,2]
[333189778,1721931035181,-166.66666668,0.00010212,2]
[333189779,1721931035190,-219.26619974,0.00010349,2]
[333189780,1721931035200,-917.88123627,0.00010384,2]
[333189781,1721931035210,-1584.2,0.00010391,2]
[333189782,1721931035219,-155.40024874,0.00010394,2]
[333189783,1721931035230,-185.14617473,0.00010401,2]
[333189784,1721931035239,-329.60084461,0.00010401,2]
[333189785,1721931035248,-190.07546064,0.00010401,2]
[333189786,1721931035258,-198.96306483,0.00010432,2]
[333189787,1721931035267,-257.044199,0.00010432,2]
[333189788,1721931035277,-176.96034438,0.00010432,2]
[333189789,1721931035286,-2618.30781882,0.00010432,2]
[333189790,1721931035295,-442.09690168,0.00010434,2]
[333189791,1721931035305,-166.66666666,0.00010437,2]
[333189792,1721931035314,-219.26619974,0.0001047,2]
[333189793,1721931035324,-219.26619974,0.00010485,2]
[333189794,1721931035333,-903.25847004,0.00010497,2]
[333189795,1721931035342,-153.58758173,0.00010499,2]
[333189796,1721931035351,-9148.48899405,0.000105,2]
[333189797,1721931035364,-3834.18185265,0.000105,2]
[333189804,1721931038352,-428.61941707,0.000105,2]
[333189805,1721931038396,-21297.3192137,0.000105,2]
[333189806,1721931038408,-310.24010705,0.000105,2]
[333189807,1721931038433,-569.8699703,0.000105,2]
[333189808,1721931038473,-483.66,0.000105,2]
[333189809,1721931038511,-2373.61805098,0.000105,2]
[333189810,1721931038523,-17557.47668954,0.000105,2]
[333189811,1721931038534,-815.0,0.000105,2]
[333189812,1721931038546,-1244649.3264319,0.000105,2]
[333189813,1721931038557,-409639.21164988,0.000105,2]
[333189814,1721931038642,-598.24,0.000105,2]
[333189815,1721931038653,-842.47852763,0.000105,2]
[333189835,1721931040343,-4677.57779459,0.000105,2]
[333189836,1721931040417,-627.83,0.000105,2]
[333189837,1721931040429,-3415.16277144,0.000105,2]
[333189838,1721931040440,-415.60797522,0.000105,2]
[333189839,1721931040451,-1326.6876604,0.000105,2]
[333189840,1721931040463,-6611.697,0.000105,2]
[333189841,1721931040474,-1500.0,0.000105,2]
[333189842,1721931040492,-501.73880926,0.000105,2]
[333189843,1721931040503,-75852.50550569,0.000105,2]
[333189844,1721931040515,-355483.58413842,0.000105,2]
[333189845,1721931040609,-961.27203814,0.000105,2]
[333189846,1721931040726,-415.87000001,0.000105,2]
[333189847,1721931040737,-786.85882658,0.000105,2]
[333190023,1721931043350,-590.9,0.000105,2]
[333190024,1721931043361,-5655.250559,0.000105,2]
[333190025,1721931043462,-312.14909766,0.000105,2]
[333190026,1721931043491,-241779.93850507,0.000105,2]
[333190027,1721931043502,-667.06707659,0.000105,2]
[333190028,1721931043597,-32624.09029328,0.000105,2]
[333190029,1721931046541,-259.26709898,0.00010396,2]
[333190030,1721931046551,-121475.48207825,0.000105,2]
[333190031,1721931046563,-2082.15278321,0.000105,2]
[333190032,1721931046574,-1981.0,0.000105,2]
[333190033,1721931046589,-464.190578,0.000105,2]
[333190034,1721931046715,-2377.93226991,0.000105,2]
[333191709,1721932231804,-250.34783082,8.12e-05,2]
[333191710,1721932231814,-153.58633523,8.124e-05,2]
[333191711,1721932231824,-1502.6,8.219e-05,2]
[333191712,1721932231833,-334.97004015,8.277e-05,2]
[333191713,1721932231843,-156.65104179,8.299e-05,2]
[333191714,1721932231852,-151.174157,8.323e-05,2]
[333191715,1721932231862,-151.85935255,8.326e-05,2]
[333191716,1721932231872,-151.62770237,8.342e-05,2]
[333191717,1721932231881,-173.15263034,8.343e-05,2]
[333191718,1721932231891,-1000.0,8.355e-05,2]
[333191719,1721932231901,-155.27583558,8.357e-05,2]
[333191720,1721932231910,-173.15263034,8.433e-05,2]
[333191721,1721932231920,-593.24135977,8.498e-05,2]
[333191722,1721932231930,-593.24135977,8.507e-05,2]
[333191723,1721932231940,-334.97004015,8.513e-05,2]
[333191724,1721932231950,-831.11487803,8.569e-05,2]
[333191725,1721932231959,-173.15263034,8.591e-05,2]
[333191726,1721932231968,-166.66666667,8.593e-05,2]
[333191727,1721932231978,-169.70620056,8.625e-05,2]
[333191728,1721932231987,-159.12953523,8.627e-05,2]
[333191729,1721932231997,-151.62770237,8.63e-05,2]
[333191730,1721932232007,-373.55887895,8.74e-05,2]
[333191731,1721932232017,-273.27297688,8.74e-05,2]
[333191732,1721932232027,-151.85935255,8.812e-05,2]
[333191733,1721932232036,-150.0,8.812e-05,2]
[333191734,1721932232045,-155.27583558,8.856e-05,2]
[333191735,1721932232055,-334.97004015,8.869e-05,2]
[333191736,1721932232064,-173.15263034,8.959e-05,2]
[333191737,1721932232074,-153.58633523,8.968e-05,2]
[333191738,1721932232083,-273.27297688,8.97e-05,2]
[333191739,1721932232093,-151.85935255,8.991e-05,2]
[333191740,1721932232102,-831.11487803,9.01e-05,2]
[333191741,1721932232112,-151.4000366,9.102e-05,2]
[333191742,1721932232122,-593.24135977,9.113e-05,2]
[333191743,1721932232132,-173.15263034,9.125e-05,2]
[333191744,1721932232142,-153.58633523,9.224e-05,2]
[333191745,1721932232151,-273.27297688,9.291e-05,2]
[333191746,1721932232160,-588.58520872,9.333e-05,2]
[333191747,1721932232172,-4.65615105,9.333e-05,2]
[333191748,1721932232181,-373.55887895,9.336e-05,2]
[333191749,1721932232191,-42.77301803,9.362e-05,2]
[333191750,1721932232206,-123.89364863,9.362e-05,2]
[333191751,1721932232216,-273.27297688,9.375e-05,2]
[333191752,1721932232225,-593.24135977,9.379e-05,2]
[333191753,1721932232235,-338.87604245,9.399e-05,2]
[333191754,1721932232270,-271.05628702,9.399e-05,2]
[333191755,1721932232283,-390.06767053,9.399e-05,2]
[333191756,1721932232292,-7.75309152,9.408e-05,2]
[333191757,1721932232304,-585.48826825,9.408e-05,2]
[333191758,1721932232313,-49.88053035,9.417e-05,2]
[333191766,1721932233460,-118.15823625,9.417e-05,2]
[333191767,1721932233471,-151.62770237,9.424e-05,2]
[333191768,1721932233480,-151.85935255,9.473e-05,2]
[333191769,1721932233490,-732.65,9.534e-05,14]
[333191770,1721932233500,-831.11487803,9.564e-05,2]
[333191771,1721932233510,-831.11487803,9.573e-05,2]
[333191772,1721932233520,-372.82495277,9.587e-05,2]
[333191773,1721932233532,-0.73392618,9.587e-05,2]
[333191774,1721932233543,-159.12953523,9.602e-05,2]
[333191775,1721932233553,-151.11045028,9.61e-05,2]
[333191776,1721932233564,-554.3422596,9.669e-05,2]
[333191777,1721932233575,-276.77261843,9.669e-05,2]
[333191778,1721932233586,-296.92,9.67e-05,2]
[333191779,1721932233596,-499.99,9.67e-05,2]
[333191780,1721932233605,-966.82,9.67e-05,2]
[333191781,1721932233615,-151.11045028,9.732e-05,2]
[333191782,1721932233625,-808.38693129,9.733e-05,2]
[333191783,1721932233637,-282.36160769,9.733e-05,2]
[333191784,1721932233657,-270.26587227,9.733e-05,2]
[333191785,1721932233683,-3694.57348875,9.733e-05,2]
[333191786,1721932233693,-173.15263034,9.747e-05,2]
[333191787,1721932233703,-150.0,9.756e-05,2]
[333191788,1721932233713,-1059.04,9.756e-05,2]
[333191789,1721932233723,-151.62770237,9.759e-05,2]
[333191790,1721932233733,-156.65104179,9.763e-05,2]
[333191791,1721932233742,-831.11487803,9.767e-05,2]
[333191792,1721932233752,-168.89470531,9.793e-05,2]